[Event "22nd ETCC Women 2019"]
[Site "Batumi"]
[Date "2019.10.24"]
[Round "1.32"]
[White "Longson, Sarah N"]
[Black "Lehaci, Miruna-Daria"]
[Result "0-1"]
[ECO "B90"]
[WhiteElo "2073"]
[BlackElo "2131"]
[Annotator "NA"]
[PlyCount "84"]
[EventDate "2019.10.24"]
[EventType "team-tourn"]
[EventCountry "GEO"]
[SourceTitle "playchess.com"]
[Source "ChessBase"]
[SourceQuality "1"]
[WhiteTeam "England"]
[BlackTeam "Romania"]
[WhiteTeamCountry "ENG"]
[BlackTeamCountry "ROU"]
[TimeControl "40/5400+30:1800+30"]

1. e4 {[%emt 0:00:00]} c5 {[%emt 0:00:00]} 2. Nf3 {[%emt 0:00:00]} d6 {[%emt 0:00:00]} 3. d4 {[%emt 0:00:00]} cxd4 {[%emt 0:00:00]} 4. Nxd4 {[%emt 0:00:00]} Nf6 {[%emt 0:00:00]} 5. Nc3 {[%emt 0:00:00]} a6 {[%emt 0:00:00]} 6. h3 {[%emt 0:00:02]} e6 {[%emt 0:00:00]} 7. g4 {[%emt 0:00:34]} Be7 {[%emt 0:00:00]} 8. Be3 {[%emt 0:01:07]} Nfd7 {[%emt 0:00:36]} 9. Bg2 {[%emt 0:04:12]} Nc6 {[%emt 0:00:50]} 10. O-O {[%emt 0:01:55]} g5 {[%emt 0:02:47]} 11. f4 {[%emt 0:16:05]} gxf4 {[%emt 0:00:37]} 12. Nxc6 {[%emt 0:00:16]} bxc6 {[%emt 0:00:10]} 13. Bxf4 {[%emt 0:01:20]} e5 {[%emt 0:12:25]} 14. Bh6 {[%emt 0:10:09]} Nb6 {[%emt 0:06:58]} 15. Qf3 {[%emt 0:05:25]} Be6 {[%emt 0:00:14]} 16. Rad1 {[%emt 0:02:00]} Rg8 {[%emt 0:08:26]} 17. Ne2 {[%emt 0:12:39]} Rg6 {[%emt 0:05:41]} 18. Bc1 {[%emt 0:03:55]} Rf6 {[%emt 0:03:46]} 19. Qc3 {[%emt 0:01:04]} Rxf1+ {[%emt 0:10:26]} 20. Rxf1 {[%emt 0:01:29]} Kd7 {[%emt 0:01:42]} 21. Rd1 {[%emt 0:02:48]} Kc7 {[%emt 0:01:48]} 22. Qa5 {[%emt 0:03:27]} Bg5 {[%emt 0:02:48]} 23. b3 {[%emt 0:06:51]} Bxc1 {[%emt 0:00:32]} 24. Nxc1 {[%emt 0:02:39]} Qg5 {[%emt 0:07:41]} 25. Qd2 {[%emt 0:01:10]} Qxd2 {[%emt 0:03:04]} 26. Rxd2 {[%emt 0:00:01]} a5 {[%emt 0:04:43]} 27. a4 {[%emt 0:01:10]} Rh8 {[%emt 0:06:50]} 28. Rf2 {[%emt 0:04:49]} h5 {[%emt 0:00:43]} 29. gxh5 {[%emt 0:07:40]} Rxh5 {[%emt 0:00:06]} 30. Ne2 {[%emt 0:00:41]} Rg5 {[%emt 0:02:03]} 31. Rf3 {[%emt 0:05:50]} Nd7 {[%emt 0:03:57]} 32. Ng3 {[%emt 0:01:18]} Nc5 {[%emt 0:02:28]} 33. Kf2 {[%emt 0:03:22]} d5 {[%emt 0:04:56]} 34. Rc3 {[%emt 0:01:36]} Kd6 {[%emt 0:03:23]} 35. exd5 {[%emt 0:00:18]} cxd5 {[%emt 0:00:04]} 36. h4 {[%emt 0:00:40]} Rg4 {[%emt 0:00:14]} 37. h5 {[%emt 0:00:38]} d4 {[%emt 0:02:01]} 38. Rf3 {[%emt 0:00:11]} e4 {[%emt 0:00:33]} 39. Rf6 {[%emt 0:01:17]} Ke5 {[%emt 0:03:52]} 40. Rh6 {[%emt 0:00:00]} e3+ {[%emt 0:00:00]} 41. Kf3 {[%emt 0:10:51]} Rf4+ {[%emt 0:00:52]} 42. Ke2 {[%emt 0:00:07]} Rf2+ {[%emt 0:00:03] Kxe3 dxe3} 0-1

[Event "22nd ETCC Women 2019"]
[Site "Batumi"]
[Date "2019.10.24"]
[Round "1.33"]
[White "Unuk, Laura"]
[Black "Khomeriki, Nino"]
[Result "1/2-1/2"]
[ECO "D39"]
[WhiteElo "2278"]
[BlackElo "2315"]
[Annotator "NA"]
[PlyCount "108"]
[EventDate "2019.10.24"]
[EventType "team-tourn"]
[EventCountry "GEO"]
[SourceTitle "playchess.com"]
[Source "ChessBase"]
[SourceQuality "1"]
[WhiteTeam "Slovenia"]
[BlackTeam "Georgia"]
[WhiteTeamCountry "SLO"]
[BlackTeamCountry "GEO"]
[TimeControl "40/5400+30:1800+30"]

1. d4 {[%emt 0:00:00]} Nf6 {[%emt 0:00:00]} 2. c4 {[%emt 0:00:00]} e6 {[%emt 0:00:00]} 3. Nf3 {[%emt 0:00:06]} d5 {[%emt 0:00:00]} 4. Nc3 {[%emt 0:00:14]} Bb4 {[%emt 0:00:10]} 5. Bg5 {[%emt 0:00:42]} dxc4 {[%emt 0:00:20]} 6. e4 {[%emt 0:00:42]} c5 {[%emt 0:00:08]} 7. e5 {[%emt 0:00:48]} cxd4 {[%emt 0:00:58]} 8. Qa4+ {[%emt 0:00:13]} Nc6 {[%emt 0:00:07]} 9. O-O-O {[%emt 0:00:06]} Bd7 {[%emt 0:02:39]} 10. Ne4 {[%emt 0:01:43]} Be7 {[%emt 0:00:10]} 11. exf6 {[%emt 0:00:19]} gxf6 {[%emt 0:00:05]} 12. Bh4 {[%emt 0:00:03]} e5 {[%emt 0:00:46]} 13. Bxc4 {[%emt 0:10:09]} O-O {[%emt 0:11:26]} 14. Kb1 {[%emt 0:02:34]} Nb4 {[%emt 0:22:17]} 15. Nxf6+ {[%emt 0:24:13]} Bxf6 {[%emt 0:00:17]} 16. Qxb4 {[%emt 0:00:04]} Bxh4 {[%emt 0:04:56]} 17. Nxe5 {[%emt 0:03:11]} Bf6 {[%emt 0:09:43]} 18. f4 {[%emt 0:05:53]} Bxe5 {[%emt 0:11:49]} 19. fxe5 {[%emt 0:00:16]} Bf5+ {[%emt 0:05:45]} 20. Ka1 {[%emt 0:04:07]} Kh8 {[%emt 0:12:35]} 21. Qd6 {[%emt 0:09:39]} Qxd6 {[%emt 0:04:15]} 22. exd6 {[%emt 0:01:09]} d3 {[%emt 0:06:09]} 23. Bxd3 {[%emt 0:06:01]} Bg4 {[%emt 0:00:13]} 24. Rd2 {[%emt 0:01:32]} Rad8 {[%emt 0:00:06]} 25. Be4 {[%emt 0:04:35]} Rd7 {[%emt 0:01:59]} 26. h3 {[%emt 0:00:18]} Be6 {[%emt 0:00:25]} 27. Bc2 {[%emt 0:04:11]} Rb8 {[%emt 0:01:00]} 28. b4 {[%emt 0:00:35]} Kg7 {[%emt 0:00:47]} 29. Kb2 {[%emt 0:01:04]} h6 {[%emt 0:00:06]} 30. Rf1 {[%emt 0:11:26]} b5 {[%emt 0:01:49]} 31. Bb3 {[%emt 0:05:06]} Bxb3 {[%emt 0:02:45]} 32. Kxb3 {[%emt 0:00:05]} Rb6 {[%emt 0:01:17]} 33. Rfd1 {[%emt 0:00:51]} Kf6 {[%emt 0:00:32]} 34. Rd5 {[%emt 0:00:30]} Ke6 {[%emt 0:00:44]} 35. Rh5 {[%emt 0:03:45]} f6 {[%emt 0:00:05]} 36. a4 {[%emt 0:00:45]} a6 {[%emt 0:01:02]} 37. Rxh6 {[%emt 0:00:58]} Rbxd6 {[%emt 0:00:31]} 38. Rxd6+ {[%emt 0:00:06]} Rxd6 {[%emt 0:00:02]} 39. axb5 {[%emt 0:00:55]} axb5 {[%emt 0:00:01]} 40. g4 {[%emt 0:00:00]} Rd3+ {[%emt 0:00:00]} 41. Kc2 {[%emt 0:00:29]} Rg3 {[%emt 0:06:24]} 42. Rh5 {[%emt 0:03:05]} Kd6 {[%emt 0:07:24]} 43. Rxb5 {[%emt 0:06:57]} Rxh3 {[%emt 0:00:07]} 44. Rf5 {[%emt 0:00:16]} Ke7 {[%emt 0:03:27]} 45. b5 {[%emt 0:10:50]} Rh4 {[%emt 0:00:10]} 46. Rf4 {[%emt 0:03:42]} f5 {[%emt 0:00:24]} 47. Rxf5 {[%emt 0:00:04]} Rxg4 {[%emt 0:00:03]} 48. Rc5 {[%emt 0:00:44]} Rg3 {[%emt 0:04:41]} 49. b6 {[%emt 0:03:01]} Kd7 {[%emt 0:04:20]} 50. b7 {[%emt 0:01:17]} Rg8 {[%emt 0:00:10]} 51. Kc3 {[%emt 0:00:09]} Rb8 {[%emt 0:00:06]} 52. Rb5 {[%emt 0:00:04]} Kc6 {[%emt 0:00:05]} 53. Kc4 {[%emt 0:00:03]} Rxb7 {[%emt 0:00:04]} 54. Rxb7 {[%emt 0:00:03]} Kxb7 1/2-1/2

[Event "22nd ETCC Women 2019"]
[Site "Batumi"]
[Date "2019.10.24"]
[Round "1.34"]
[White "Khukhashvili, Sopiko"]
[Black "Janzelj, Lara"]
[Result "1-0"]
[ECO "C45"]
[WhiteElo "2341"]
[BlackElo "2159"]
[Annotator "NA"]
[PlyCount "127"]
[EventDate "2019.10.24"]
[EventType "team-tourn"]
[EventCountry "GEO"]
[SourceTitle "playchess.com"]
[Source "ChessBase"]
[SourceQuality "1"]
[WhiteTeam "Georgia"]
[BlackTeam "Slovenia"]
[WhiteTeamCountry "GEO"]
[BlackTeamCountry "SLO"]
[TimeControl "40/5400+30:1800+30"]

1. e4 {[%emt 0:00:00]} e5 {[%emt 0:00:00]} 2. Nf3 {[%emt 0:00:00]} Nc6 {[%emt 0:00:00]} 3. d4 {[%emt 0:00:04]} exd4 {[%emt 0:00:00]} 4. Nxd4 {[%emt 0:00:02]} Nf6 {[%emt 0:00:38]} 5. Nxc6 {[%emt 0:00:20]} bxc6 {[%emt 0:00:04]} 6. e5 {[%emt 0:00:04]} Qe7 {[%emt 0:00:03]} 7. Qe2 {[%emt 0:00:04]} Nd5 {[%emt 0:00:04]} 8. c4 {[%emt 0:00:04]} Nb6 {[%emt 0:00:31]} 9. Nc3 {[%emt 0:00:14]} Bb7 {[%emt 0:00:45]} 10. Bd2 {[%emt 0:00:34]} Qe6 {[%emt 0:05:10]} 11. f4 {[%emt 0:03:33]} O-O-O {[%emt 0:11:03]} 12. O-O-O $11 {[%emt 0:01:10]} Ba6 {[%emt 0:15:47]} 13. Qe4 {[%emt 0:05:59]} f5 {[%emt 0:04:25]} 14. exf6 {[%emt 0:00:50]} Bxc4 {[%emt 0:00:31]} 15. Bxc4 {[%emt 0:09:58]} Qxc4 {[%emt 0:00:06]} 16. b3 {[%emt 0:04:07]} Qf7 {[%emt 0:03:06]} 17. fxg7 {[%emt 0:06:24]} Bxg7 {[%emt 0:01:09]} 18. Qd3 {[%emt 0:02:21]} Kb7 {[%emt 0:05:52]} 19. g4 {[%emt 0:03:01]} d5 {[%emt 0:05:23]} 20. f5 {[%emt 0:01:44]} Qe7 {[%emt 0:03:20]} 21. g5 {[%emt 0:03:37]} Qa3+ {[%emt 0:02:34]} 22. Kb1 {[%emt 0:00:10]} Be5 {[%emt 0:04:02]} 23. Rde1 {[%emt 0:00:17]} Nd7 {[%emt 0:03:40]} 24. Na4 {[%emt 0:03:58]} Rhe8 {[%emt 0:02:51]} 25. f6 {[%emt 0:01:44]} Nb6 {[%emt 0:02:01]} 26. Bc1 {[%emt 0:03:40]} Qd6 {[%emt 0:00:52]} 27. Nxb6 {[%emt 0:01:37]} axb6 {[%emt 0:00:04]} 28. f7 {[%emt 0:05:05]} Rf8 {[%emt 0:03:20]} 29. Qxh7 {[%emt 0:02:15]} Ra8 {[%emt 0:05:30]} 30. Qf5 {[%emt 0:05:32]} Bh8 {[%emt 0:00:05]} 31. Re2 {[%emt 0:03:07]} d4 {[%emt 0:01:12]} 32. g6 {[%emt 0:03:54]} d3 {[%emt 0:01:14]} 33. Rd2 {[%emt 0:00:02]} Ra5 {[%emt 0:00:27]} 34. Qxd3 {[%emt 0:03:40]} Rd5 {[%emt 0:01:17]} 35. Qc2 {[%emt 0:00:10]} Rxd2 {[%emt 0:01:20]} 36. Bxd2 {[%emt 0:00:03]} Qf6 {[%emt 0:02:14]} 37. Bc3 {[%emt 0:13:17]} Qxc3 {[%emt 0:00:03]} 38. Qxc3 {[%emt 0:00:04]} Bxc3 {[%emt 0:00:03]} 39. h4 {[%emt 0:00:25]} Bg7 {[%emt 0:00:19]} 40. h5 {[%emt 0:00:00]} Rh8 {[%emt 0:00:00]} 41. Kc2 {[%emt 0:00:49]} Kc8 {[%emt 0:01:54]} 42. a4 {[%emt 0:01:11]} c5 {[%emt 0:05:27]} 43. Kd3 {[%emt 0:00:36]} Kd7 {[%emt 0:00:05]} 44. Ke4 {[%emt 0:00:13]} Ke6 {[%emt 0:00:28]} 45. Kf4 {[%emt 0:00:14]} Bh6+ {[%emt 0:10:52]} 46. Kg4 {[%emt 0:00:04]} Rf8 {[%emt 0:01:00]} 47. Re1+ {[%emt 0:00:56]} Kf6 {[%emt 0:00:05]} 48. Re2 {[%emt 0:00:26]} Rh8 {[%emt 0:04:10]} 49. Rf2+ {[%emt 0:00:26]} Ke6 {[%emt 0:00:35]} 50. Re2+ {[%emt 0:00:59]} Kf6 {[%emt 0:00:07]} 51. Rc2 {[%emt 0:00:05]} Rd8 {[%emt 0:09:35]} 52. Rf2+ {[%emt 0:00:21]} Kg7 {[%emt 0:00:10]} 53. Re2 {[%emt 0:03:58]} Rd4+ {[%emt 0:05:12]} 54. Kf3 {[%emt 0:04:12]} Rd3+ {[%emt 0:09:38]} 55. Kf2 {[%emt 0:04:33]} Rd2 {[%emt 0:02:30]} 56. Rxd2 {[%emt 0:00:02]} Bxd2 {[%emt 0:00:02]} 57. Kf3 {[%emt 0:00:06]} c6 {[%emt 0:02:06]} 58. Ke4 {[%emt 0:00:14]} Bc3 {[%emt 0:01:40]} 59. Kf5 {[%emt 0:02:10]} b5 {[%emt 0:01:19]} 60. Ke6 {[%emt 0:00:47]} c4 {[%emt 0:00:47]} 61. h6+ {[%emt 0:00:27]} Kf8 {[%emt 0:00:13]} 62. g7+ {[%emt 0:00:14]} Bxg7 {[%emt 0:00:03]} 63. hxg7+ {[%emt 0:00:04]} Kxg7 {[%emt 0:00:03]} 64. Ke7 {[%emt 0:00:05]} 1-0

[Event "22nd ETCC Women 2019"]
[Site "Batumi"]
[Date "2019.10.24"]
[Round "1.35"]
[White "Hrescak, Ivana"]
[Black "Gvetadze, Sofio"]
[Result "0-1"]
[ECO "E47"]
[WhiteElo "2226"]
[BlackElo "2297"]
[Annotator "NA"]
[PlyCount "120"]
[EventDate "2019.10.24"]
[EventType "team-tourn"]
[EventCountry "GEO"]
[SourceTitle "playchess.com"]
[Source "ChessBase"]
[SourceQuality "1"]
[WhiteTeam "Slovenia"]
[BlackTeam "Georgia"]
[WhiteTeamCountry "SLO"]
[BlackTeamCountry "GEO"]
[TimeControl "40/5400+30:1800+30"]

1. d4 {[%emt 0:00:00]} Nf6 {[%emt 0:00:00]} 2. c4 {[%emt 0:00:00]} e6 {[%emt 0:00:00]} 3. Nc3 {[%emt 0:00:00]} Bb4 {[%emt 0:00:05]} 4. e3 {[%emt 0:00:00]} O-O {[%emt 0:00:14]} 5. Bd3 {[%emt 0:00:01]} c5 {[%emt 0:00:42]} 6. Nge2 {[%emt 0:00:53]} cxd4 {[%emt 0:00:40] Pin} 7. exd4 {[%emt 0:00:11]} d5 {[%emt 0:00:19]} 8. cxd5 {[%emt 0:01:13]} Nxd5 $11 {[%emt 0:00:48]} 9. O-O {[%emt 0:01:32]} Nc6 {[%emt 0:01:30]} 10. a3 {[%emt 0:01:49]} Be7 {[%emt 0:00:39]} 11. Qc2 {[%emt 0:05:39]} g6 {[%emt 0:19:42]} 12. Bh6 {[%emt 0:10:46]} Re8 {[%emt 0:00:12]} 13. Rad1 {[%emt 0:00:42]} Bf6 {[%emt 0:05:41]} 14. Be4 {[%emt 0:04:19]} Nce7 {[%emt 0:11:18]} 15. Rd3 {[%emt 0:07:14]} Bd7 {[%emt 0:04:09]} 16. b4 {[%emt 0:08:14]} a6 {[%emt 0:04:47]} 17. Rfd1 {[%emt 0:04:48]} Bc6 {[%emt 0:02:43]} 18. Qd2 {[%emt 0:04:10]} Rc8 {[%emt 0:09:31]} 19. Rh3 {[%emt 0:08:53]} Nf5 {[%emt 0:04:11]} 20. Bxf5 {[%emt 0:18:28]} exf5 {[%emt 0:00:27]} 21. Rd3 {[%emt 0:05:56]} Qd7 {[%emt 0:11:46]} 22. Bg5 {[%emt 0:03:39]} Bg7 {[%emt 0:02:27]} 23. Bf4 {[%emt 0:00:50]} Qe6 {[%emt 0:06:21]} 24. Bg3 {[%emt 0:02:14]} Nxc3 {[%emt 0:07:35]} 25. Nxc3 {[%emt 0:00:06]} Qc4 {[%emt 0:00:06]} 26. f3 {[%emt 0:05:41]} Bd5 {[%emt 0:04:32]} 27. Be5 {[%emt 0:02:04]} Qc6 {[%emt 0:01:37]} 28. Nxd5 {[%emt 0:01:32]} Qxd5 {[%emt 0:00:02]} 29. Re1 {[%emt 0:01:24]} Red8 {[%emt 0:01:25]} 30. Bxg7 {[%emt 0:01:39]} Kxg7 {[%emt 0:00:02]} 31. Re5 {[%emt 0:00:18]} Qd6 {[%emt 0:00:09]} 32. Rc5 {[%emt 0:00:44]} Rxc5 {[%emt 0:00:41]} 33. bxc5 {[%emt 0:00:06]} Qd5 {[%emt 0:00:14]} 34. Qe3 {[%emt 0:00:56]} Rd7 {[%emt 0:00:55]} 35. Rd2 {[%emt 0:00:21]} Qe6 {[%emt 0:00:28]} 36. Kf2 {[%emt 0:00:42]} Qd5 {[%emt 0:01:09]} 37. Rd3 {[%emt 0:00:43]} Qe6 {[%emt 0:00:34]} 38. Qd2 {[%emt 0:00:34]} Qd5 {[%emt 0:00:28]} 39. Qe2 {[%emt 0:00:36]} Kf8 {[%emt 0:00:22]} 40. Qe3 {[%emt 0:00:00]} Re7 {[%emt 0:00:00]} 41. Qd2 {[%emt 0:03:54]} Qc4 {[%emt 0:09:12]} 42. Qc3 {[%emt 0:06:36]} Qa2+ {[%emt 0:02:11]} 43. Rd2 {[%emt 0:01:32]} Qd5 {[%emt 0:03:19]} 44. Rb2 {[%emt 0:01:40]} h5 {[%emt 0:09:19]} 45. Rb6 {[%emt 0:05:11]} h4 {[%emt 0:02:51]} 46. Qd2 {[%emt 0:04:06]} Kg7 {[%emt 0:00:23]} 47. Rd6 {[%emt 0:02:00]} Qc4 {[%emt 0:00:30]} 48. Qb2 {[%emt 0:01:19]} Kh7 {[%emt 0:00:34]} 49. Qd2 {[%emt 0:03:04]} Qb3 {[%emt 0:04:15]} 50. Rd8 {[%emt 0:02:34]} Qxa3 {[%emt 0:00:19]} 51. Rc8 {[%emt 0:01:39]} f4 {[%emt 0:00:36]} 52. d5 {[%emt 0:00:45]} Re3 {[%emt 0:00:26]} 53. d6 {[%emt 0:00:43]} Rd3 {[%emt 0:00:29]} 54. Qe2 {[%emt 0:00:58]} Qc3 {[%emt 0:00:27]} 55. Re8 {[%emt 0:01:43]} Qxc5+ {[%emt 0:01:37]} 56. Kf1 {[%emt 0:00:10]} Qc1+ {[%emt 0:00:16]} 57. Kf2 {[%emt 0:00:13]} Rd2 {[%emt 0:00:37]} 58. d7 {[%emt 0:00:33]} Qc5+ {[%emt 0:00:34]} 59. Kf1 {[%emt 0:00:29]} Rxe2 {[%emt 0:01:03]} 60. Rh8+ {[%emt 0:00:44]} Kg7 {[%emt 0:00:06]} 0-1

[Event "22nd ETCC Women 2019"]
[Site "Batumi"]
[Date "2019.10.24"]
[Round "1.36"]
[White "Mikadze, Miranda"]
[Black "Rozman, Monika"]
[Result "1-0"]
[ECO "C77"]
[WhiteElo "2279"]
[BlackElo "2122"]
[Annotator "NA"]
[PlyCount "133"]
[EventDate "2019.10.24"]
[EventType "team-tourn"]
[EventCountry "GEO"]
[SourceTitle "playchess.com"]
[Source "ChessBase"]
[SourceQuality "1"]
[WhiteTeam "Georgia"]
[BlackTeam "Slovenia"]
[WhiteTeamCountry "GEO"]
[BlackTeamCountry "SLO"]
[TimeControl "40/5400+30:1800+30"]

1. e4 {[%emt 0:00:00]} e5 {[%emt 0:00:00]} 2. Nf3 {[%emt 0:00:00]} Nc6 {[%emt 0:00:00]} 3. Bb5 {[%emt 0:00:00]} a6 {[%emt 0:00:00]} 4. Ba4 {[%emt 0:00:00]} Nf6 {[%emt 0:00:00]} 5. d3 {[%emt 0:00:12]} d6 {[%emt 0:01:20]} 6. O-O {[%emt 0:00:12]} g6 {[%emt 0:01:39]} 7. c4 {[%emt 0:05:40]} Bd7 {[%emt 0:05:19]} 8. Nc3 {[%emt 0:01:25]} Bg7 {[%emt 0:00:42]} 9. h3 {[%emt 0:04:08]} O-O {[%emt 0:01:42]} 10. Bg5 $11 {[%emt 0:00:50]} h6 {[%emt 0:04:47]} 11. Be3 {[%emt 0:01:20]} Kh7 {[%emt 0:02:11]} 12. Re1 {[%emt 0:10:14]} Ne7 {[%emt 0:04:00]} 13. d4 {[%emt 0:04:26]} Bxa4 {[%emt 0:03:21]} 14. Qxa4 {[%emt 0:00:21]} exd4 {[%emt 0:02:07]} 15. Nxd4 {[%emt 0:01:14]} Nd7 {[%emt 0:01:29]} 16. Qc2 {[%emt 0:02:51]} Ne5 {[%emt 0:03:59]} 17. b3 {[%emt 0:00:36]} Qd7 {[%emt 0:05:17]} 18. Rad1 {[%emt 0:01:14]} Rae8 {[%emt 0:15:15]} 19. Nde2 {[%emt 0:07:12]} N5c6 {[%emt 0:05:34]} 20. c5 {[%emt 0:03:58]} f5 {[%emt 0:07:03]} 21. cxd6 {[%emt 0:00:51]} cxd6 {[%emt 0:00:13]} 22. Bf4 {[%emt 0:09:38]} fxe4 {[%emt 0:04:45]} 23. Bxd6 {[%emt 0:04:26]} Qf5 {[%emt 0:07:15]} 24. Nxe4 {[%emt 0:04:28]} Rc8 {[%emt 0:03:45]} 25. N2g3 {[%emt 0:02:19]} Qa5 {[%emt 0:01:10]} 26. Qd2 {[%emt 0:04:50]} Qxd2 {[%emt 0:00:39]} 27. Rxd2 {[%emt 0:00:44]} Rfe8 {[%emt 0:03:33]} 28. Rde2 {[%emt 0:09:37]} Nd4 {[%emt 0:02:15]} 29. Ng5+ {[%emt 0:01:08]} hxg5 {[%emt 0:00:22]} 30. Rxe7 {[%emt 0:00:07]} Rg8 {[%emt 0:02:22]} 31. Rxb7 {[%emt 0:02:03]} Nf5 {[%emt 0:01:23]} 32. Nxf5 {[%emt 0:04:22]} gxf5 {[%emt 0:00:06]} 33. Ree7 {[%emt 0:01:12]} Kg6 {[%emt 0:00:32]} 34. g4 {[%emt 0:00:16]} Rc6 {[%emt 0:02:59]} 35. gxf5+ {[%emt 0:06:22]} Kxf5 {[%emt 0:00:11]} 36. Rxg7 {[%emt 0:01:07]} Rxg7 {[%emt 0:00:09]} 37. Rxg7 {[%emt 0:00:04]} Rxd6 {[%emt 0:00:04]} 38. Kg2 {[%emt 0:00:29]} Rb6 {[%emt 0:07:48]} 39. Rc7 {[%emt 0:00:25]} Kf4 {[%emt 0:02:02]} 40. Rc4+ {[%emt 0:00:00]} Kf5 {[%emt 0:00:00]} 41. Kg3 {[%emt 0:03:18]} Rd6 {[%emt 0:06:04]} 42. Rc5+ {[%emt 0:04:23]} Kg6 {[%emt 0:01:21]} 43. Ra5 {[%emt 0:00:54]} Rf6 {[%emt 0:03:07]} 44. Ra4 {[%emt 0:01:06]} Rd6 {[%emt 0:03:57]} 45. h4 {[%emt 0:01:15]} gxh4+ {[%emt 0:00:19]} 46. Rxh4 {[%emt 0:01:11]} Kf5 {[%emt 0:00:25]} 47. Ra4 {[%emt 0:01:13]} Rc6 {[%emt 0:01:12]} 48. Kf3 {[%emt 0:00:28]} Ke5 {[%emt 0:00:34]} 49. Ke3 {[%emt 0:00:13]} Kd5 {[%emt 0:02:24]} 50. Kd3 {[%emt 0:00:38]} Ke5 {[%emt 0:00:20]} 51. Re4+ {[%emt 0:01:00]} Kf5 {[%emt 0:00:27]} 52. Rc4 {[%emt 0:00:42]} Rb6 {[%emt 0:00:20]} 53. Kc3 {[%emt 0:00:24]} Ke5 {[%emt 0:00:10]} 54. f4+ {[%emt 0:03:21]} Kf5 {[%emt 0:00:26]} 55. Kd4 {[%emt 0:03:15]} Ke6 {[%emt 0:04:19]} 56. Rc5 {[%emt 0:03:16]} Kd6 {[%emt 0:02:15]} 57. Rd5+ {[%emt 0:02:23]} Kc6 {[%emt 0:01:47]} 58. Ke5 {[%emt 0:00:47]} Rb8 {[%emt 0:00:25]} 59. Rd6+ {[%emt 0:00:16]} Kb5 {[%emt 0:00:25]} 60. f5 {[%emt 0:00:36]} a5 {[%emt 0:00:09]} 61. f6 {[%emt 0:00:28]} Kb4 {[%emt 0:00:25]} 62. Rd4+ {[%emt 0:01:15]} Kc5 {[%emt 0:00:56]} 63. Rc4+ {[%emt 0:00:06]} Kb5 {[%emt 0:00:12]} 64. f7 {[%emt 0:00:23]} Ka6 {[%emt 0:00:36]} 65. Rf4 {[%emt 0:01:12]} Rf8 {[%emt 0:00:34]} 66. Ke6 {[%emt 0:00:07]} a4 {[%emt 0:00:05]} 67. Ke7 {[%emt 0:01:40]} 1-0

[Event "22nd ETCC Women 2019"]
[Site "Batumi"]
[Date "2019.10.25"]
[Round "2.1"]
[White "Goryachkina, Aleksandra"]
[Black "Batsiashvili, Nino"]
[Result "1-0"]
[ECO "A05"]
[WhiteElo "2575"]
[BlackElo "2422"]
[Annotator "ChessBase"]
[PlyCount "73"]
[EventDate "2019.10.24"]
[EventType "team-tourn"]
[EventCountry "GEO"]
[SourceTitle "playchess.com"]
[Source "ChessBase"]
[SourceQuality "1"]
[WhiteTeam "Russia"]
[BlackTeam "Georgia"]
[WhiteTeamCountry "RUS"]
[BlackTeamCountry "GEO"]
[TimeControl "40/5400+30:1800+30"]

1. Nf3 {[%emt 0:00:00]} Nf6 {[%emt 0:00:43]} 2. c4 {[%emt 0:00:00]} e6 {[%emt 0:01:22]} 3. Nc3 {[%emt 0:00:17]} d5 {[%emt 0:00:25]} 4. d4 {[%emt 0:00:32]} a6 {[%emt 0:00:51]} 5. cxd5 {[%emt 0:01:01]} exd5 {[%emt 0:00:05]} 6. Bg5 {[%emt 0:00:21]} Be6 {[%emt 0:00:49]} 7. e3 {[%emt 0:00:42]} Nbd7 {[%emt 0:00:08]} 8. h3 {[%emt 0:01:15]} Be7 {[%emt 0:05:45]} 9. Bd3 {[%emt 0:04:18]} O-O {[%emt 0:02:12]} 10. O-O {[%emt 0:06:23]} c5 {[%emt 0:01:50]} 11. dxc5 {[%emt 0:03:54]} Nxc5 {[%emt 0:00:13]} 12. Rc1 {[%emt 0:01:22]} Rc8 {[%emt 0:04:19]} 13. Nd4 {[%emt 0:04:24]} Qb6 {[%emt 0:21:21]} 14. Rc2 {[%emt 0:05:27]} Rfe8 {[%emt 0:02:37]} 15. Bf5 {[%emt 0:10:04]} g6 {[%emt 0:19:53]} 16. Bxf6 {[%emt 0:07:37]} Bxf6 {[%emt 0:10:59]} 17. Nxe6 {[%emt 0:02:01]} Bxc3 {[%emt 0:03:28]} 18. Nf4 {[%emt 0:03:00]} gxf5 {[%emt 0:04:09]} 19. Nxd5 {[%emt 0:01:12]} Qe6 {[%emt 0:00:14]} 20. Nxc3 {[%emt 0:02:09]} Ne4 {[%emt 0:03:41]} 21. Nxe4 {[%emt 0:04:11]} Qxe4 {[%emt 0:00:18]} 22. Rxc8 {[%emt 0:04:37]} Rxc8 {[%emt 0:00:01]} 23. Qd7 {[%emt 0:01:08]} Re8 {[%emt 0:03:36]} 24. Rc1 {[%emt 0:01:44]} Re6 {[%emt 0:05:23]} 25. Rc7 {[%emt 0:11:37]} Rf6 {[%emt 0:00:14]} 26. Rxb7 {[%emt 0:02:30]} Qb1+ {[%emt 0:03:59]} 27. Kh2 {[%emt 0:00:02]} Qxa2 {[%emt 0:00:08]} 28. Rb8+ {[%emt 0:02:22]} Kg7 {[%emt 0:00:01]} 29. Qd8 {[%emt 0:00:39]} Qe6 {[%emt 0:01:32]} 30. Qf8+ {[%emt 0:00:25]} Kg6 {[%emt 0:00:12]} 31. f4 {[%emt 0:00:31]} h6 {[%emt 0:02:02]} 32. Re8 {[%emt 0:03:58]} Qd6 {[%emt 0:02:20]} 33. Qg8+ {[%emt 0:00:56]} Kh5 {[%emt 0:00:01]} 34. Re5 {[%emt 0:00:44]} Qd1 {[%emt 0:00:48]} 35. Qg7 {[%emt 0:00:51]} Rg6 {[%emt 0:01:17]} 36. Rxf5+ {[%emt 0:00:24]} Kh4 {[%emt 0:00:08]} 37. g3+ {[%emt 0:00:23]} 1-0